[Event "Slovakia Open Piestany-A 2022"]
[Site "Piestany"]
[Date "2022.07.18"]
[Round "9.26"]
[White "Drtina, Milan"]
[Black "Warchol, Kamil"]
[Result "0-1"]
[ECO "C78"]
[WhiteElo "2167"]
[BlackElo "2121"]
[Annotator "TA"]
[PlyCount "50"]
[EventDate "2022.07.12"]
[EventType "swiss"]
[EventCountry "SVK"]
[SourceTitle "playchess.com"]
[Source "ChessBase"]
[SourceQuality "1"]
[TimeControl "40/5400+30:1800+30"]

{[%evp 16,50,-6,-40,-26,-69,-64,-61,-64,-220,-212,-236,-240,-224,-45,-52,-45,-135,-118,-286,-285,-593,-589,-988,-992,-1395,-1104,-1123,-1121,-1509,-1510,-1506,-1505,-1293,-1367,-1300,-1193]} 1. e4 {[%emt 0:00:18]} e5 {[%emt 0:00:08]} 2. Nf3 {[%emt 0:00:13]} Nc6 {[%emt 0:00:05]} 3. Bb5 {[%emt 0:00:15][%cal Bf1b5,Bb5a4,Ba4b3][%mdl 32]} a6 {[%emt 0:00:04]} 4. Ba4 {[%emt 0:00:11]} Nf6 {[%emt 0:00:19]} 5. O-O {[%emt 0:02:40]} b5 {[%emt 0:00:42]} 6. Bb3 {[%emt 0:00:18]} Bb7 {[%emt 0:00:11]} 7. Ng5 {[%emt 0:03:55]} d5 {[%emt 0:20:59]} 8. exd5 {[%emt 0:00:15]} Nd4 {[%emt 0:00:15]} 9. Re1 {[%emt 0:03:03]} Be7 {[%emt 0:31:26] C78: Ruy Lopez: Archangelsk and Möller Defences.} 10. Rxe5 {[%emt 0:04:38][%cal Og5f7]} O-O {[%emt 0:02:50]} 11. Nf3 {[%emt 0:01:11]} Qd6 $1 {[%emt 0:08:47] [#] Threatens to win with ...Nxf3+. Black is slightly better.} 12. Re1 $146 {[%emt 0:10:09] [#]} (12. Re3 $15 Nxb3 13. axb3) ({Predecessor:} 12. Re3 Nxb3 13. axb3 {1-0 (13) Mai,W (2025)-Ozkan,O (2184) ICCF email 2012}) 12... Ng4 $1 $19 {[%emt 0:01:06]} 13. g3 {[%emt 0:02:56]} ({Avoid the trap} 13. Nxd4 $2 Qxh2+ 14. Kf1 Qh1+ 15. Ke2 Qxg2 $19) (13. d3 Nxf3+) 13... Qf6 {[%emt 0:11:21]} ({And not} 13... Nxb3 14. axb3 Qxd5 15. h3 $15) 14. Kg2 {[%emt 0:00:46] [#]} Nxb3 $2 {[%emt 0:02:16]} (14... Bc5 $1 $19 {[%cal Og4f2] And now ...Nxf2! would win.} 15. Re3 Nxb3 16. axb3 Bxd5) 15. axb3 $15 {[%emt 0:00:16]} Bxd5 {[%emt 0:00:05][%cal Og4h2] White must now prevent ...Nxh2!} 16. Nc3 {[%emt 0:00:52]} (16. c4 $1 $15 Bb7 17. d4) 16... Bb7 $36 {[%emt 0:02:19][%cal Og4h2][%mdl 3072] ...Nxh2! is the strong threat. Black has strong compensation. Black is on the roll. 0x0.00144bc29aebdp-1022s more active pieces.} 17. Ne4 $2 {[%emt 0:00:31]} (17. d4 $17) 17... Qg6 $19 {[%emt 0:00:55] Hoping for ...f5.} 18. d3 $2 {[%emt 0:05:09]} (18. Nc3 {nothing else works.} Qh5 19. h3) 18... f5 {[%emt 0:01:34] Black is clearly winning.} 19. Ned2 {[%emt 0:02:30]} Bc5 {[%emt 0:01:01][%cal Be7c5,Bc5f2,Bf2e1][%mdl 32] Strongly threatening ...Qh5.} 20. h3 {[%emt 0:02:54]} Bxf2 {[%emt 0:02:09]} 21. hxg4 {[%emt 0:01:10]} Bxe1 {[%emt 0:00:54] A strong pair of Bishops.} 22. g5 {[%emt 0:00:25]} Rae8 {[%emt 0:00:19]} 23. Nf1 {[%emt 0:00:17]} Qh5 {[%emt 0:02:54] ( -> ...Bxf3+)} 24. N1h2 {[%emt 0:03:19]} Bxf3+ {[%emt 0:04:01]} 25. Nxf3 {[%emt 0:00:17]} Qg4 {[%emt 0:00:28] Weighted Error Value: White=1.41/Black=0.28 (precise)} 0-1

[Event "Slovakia Open Piestany-A 2022"]
[Site "Piestany"]
[Date "2022.07.18"]
[Round "9.27"]
[White "Balint, Peter"]
[Black "Compel, Daniel"]
[Result "0-1"]
[ECO "B90"]
[WhiteElo "2051"]
[BlackElo "2098"]
[Annotator "TA"]
[PlyCount "90"]
[EventDate "2022.07.12"]
[EventType "swiss"]
[EventCountry "SVK"]
[SourceTitle "playchess.com"]
[Source "ChessBase"]
[SourceQuality "1"]
[TimeControl "40/5400+30:1800+30"]

{[%evp 9,90,19,28,10,18,17,14,11,17,0,14,0,94,0,0,0,0,-17,0,0,0,-13,0,0,0,0,0,0,0,0,0,0,44,42,68,-69,-70,-528,-43,-45,-50,-165,-171,-258,-88,-136,-83,-230,-221,-210,-214,-235,-221,-234,-220,-244,-188,-182,-188,-320,-313,-318,-329,-385,-320,-324,-318,-435,-433,-441,-443,-423,-358,-345,-344,-474,-388,-1455,-1445,-29991,-29986,-29982,-29983]} 1. e4 {[%emt 0:00:32]} c5 {[%emt 0:00:08]} 2. Nf3 {[%emt 0:00:05]} d6 {[%emt 0:00:04]} 3. d4 {[%emt 0:00:04]} cxd4 {[%emt 0:00:03]} 4. Nxd4 {[%emt 0:00:05]} Nf6 {[%emt 0:00:03]} 5. Nc3 {[%emt 0:00:06]} a6 {[%emt 0:00:02]} 6. Qd3 {[%emt 0:00:10] B90: Sicilian Najdorf: Unusual White 6th moves, 6 Be3 Ng4 and 6 Be3 e5.} Nbd7 {[%emt 0:00:26]} 7. Be2 {[%emt 0:00:30]} e6 {[%emt 0:00:40]} 8. a4 {[%emt 0:02:51] The position is equal. 8.g4 gains popularity.} b6 {[%emt 0:00:37]} 9. Qg3 {[%emt 0:00:13]} Bb7 {[%emt 0:00:20]} 10. O-O {[%emt 0:03:40]} Be7 {[%emt 0:10:27]} (10... g6 $11 {keeps the balance.}) 11. Be3 {[%emt 0:17:37]} (11. Qxg7 $16 Rg8 12. Qh6) 11... O-O $11 {[%emt 0:00:39]} 12. f3 {[%emt 0:09:06]} Rc8 {[%emt 0:01:30]} 13. Nb3 {[%emt 0:01:31]} Qc7 {[%emt 0:07:29]} 14. Rfd1 {[%emt 0:04:32]} Rfe8 {[%emt 0:02:03] [#]} 15. Bd4 $146 {[%emt 0:01:55]} ({Predecessor:} 15. Nd2 Ne5 16. Qf2 Nfd7 17. f4 Nc6 18. Nc4 Nc5 19. Rd2 Nb4 20. Rad1 d5 21. exd5 Nxd5 22. Nxd5 exd5 23. Rxd5 Bxd5 24. Rxd5 Nxa4 {0-1 (38) Jaenig,R (2172)-Schmaltz,R (2519) Bad Wiessee 2003}) 15... Ne5 {[%emt 0:01:22]} 16. Nd2 {[%emt 0:06:52]} Red8 {[%emt 0:20:38]} 17. Rac1 {[%emt 0:08:17]} Nc6 {[%emt 0:03:14]} 18. Be3 {[%emt 0:00:43]} Nd7 {[%emt 0:15:33]} 19. Nc4 {[%emt 0:14:43][%cal Rc4d6]} Nce5 {[%emt 0:00:28]} 20. Bh6 {[%emt 0:01:05][%csl Gh6][%cal Rg3g7]} g6 {[%emt 0:02:12]} 21. Ne3 {[%emt 0:00:42][%cal Oe2a6]} Bf6 {[%emt 0:04:20]} 22. Bg5 {[%emt 0:04:30]} (22. f4 $14) 22... Qc5 {[%emt 0:00:42] Hoping for ...Bxg5.} 23. Kf2 $2 {[%emt 0:01:32][%mdl 8192]} ({White should try} 23. Bf4 $15) 23... Kg7 $2 {[%emt 0:01:32]} (23... Bxg5 $19 24. f4 Bh6 $1) 24. h4 $15 {[%emt 0:06:45]} h6 {[%emt 0:05:38]} 25. Bxf6+ {[%emt 0:01:09]} (25. Bf4 $15) 25... Nxf6 $19 {[%emt 0:00:08]} 26. f4 {[%emt 0:01:07] [#]} (26. Qh2 $142) 26... Ned7 $2 {[%emt 0:00:26]} (26... Qxc3 $1 $19 {[%mdl 512]} 27. bxc3 Nxe4+ 28. Ke1 Nxg3 29. fxe5 Rxc3) 27. Bf3 {[%emt 0:00:20]} ({Better is} 27. Kf1) 27... Ba8 {[%emt 0:01:22]} (27... Kh7 $142 28. Ra1 Qb4) 28. Re1 {[%emt 0:01:36]} (28. Ra1 $17) 28... b5 {[%emt 0:00:53]} 29. axb5 {[%emt 0:00:05]} axb5 {[%emt 0:00:04][%cal Ba6b5,Bb5b4][%mdl 32]} 30. Kg1 {[%emt 0:04:46]} b4 {[%emt 0:00:35]} 31. Na4 {[%emt 0:00:11]} Qb5 {[%emt 0:00:17]} 32. b3 {[%emt 0:00:27]} Nxe4 {[%emt 0:05:09]} 33. Bxe4 {[%emt 0:00:38]} Bxe4 {[%emt 0:00:07]} 34. Nc4 {[%emt 0:04:05]} (34. c4 $142 Qh5 35. Nc2 Bxc2 36. Rxc2) 34... Nf6 {[%emt 0:00:15] ...Rxc4 is the strong threat.} 35. Nab2 {[%emt 0:00:54]} d5 {[%emt 0:00:24]} 36. Ne3 {[%emt 0:01:08]} Rc3 {[%emt 0:00:28] Threatens to win with ...d4.} 37. Nbd1 {[%emt 0:00:10]} Rc5 {[%emt 0:00:22]} 38. Nf2 {[%emt 0:00:46]} Rdc8 {[%emt 0:01:06]} 39. f5 {[%emt 0:03:06]} exf5 {[%emt 0:01:08]} 40. Qe5 {[%emt 0:00:53]} Re8 {[%emt 0:02:51]} 41. Qd4 {[%emt 0:30:39]} Rc3 {[%emt 0:31:53][%cal Bc5c3,Bc3g3,Bg3g2][%mdl 32]} 42. Ned1 {[%emt 0:00:00]} Qc5 {[%emt 0:00:00]} 43. Qd2 {[%emt 0:00:00]} (43. Qxc5 Rxc5 44. Re2) 43... Rg3 {[%emt 0:00:00]} 44. Kh1 {[%emt 0:00:00]} Rxg2 {[%emt 0:00:00]} 45. Rxe4 {[%emt 0:00:00]} Nxe4 {[%emt 0:00:00] Weighted Error Value: White=0.79/Black=0.45} 0-1

[Event "Slovakia Open Piestany-A 2022"]
[Site "Piestany"]
[Date "2022.07.18"]
[Round "9.28"]
[White "Saravanan Durga"]
[Black "Paluska, Karol"]
[Result "0-1"]
[ECO "E53"]
[WhiteElo "1908"]
[BlackElo "1957"]
[Annotator "TA"]
[PlyCount "117"]
[EventDate "2022.07.12"]
[EventType "swiss"]
[EventCountry "SVK"]
[SourceTitle "playchess.com"]
[Source "ChessBase"]
[SourceQuality "1"]
[TimeControl "40/5400+30:1800+30"]

{[%evp 12,117,8,8,43,29,65,43,33,36,30,22,25,14,25,14,0,0,0,0,0,-16,-10,-14,-23,-37,-31,-45,-27,-29,-33,-49,-45,-40,-39,-126,-22,-20,0,0,119,-16,-10,-15,19,-80,-73,-361,-350,-342,0,-10,10,0,16,-7,0,0,22,0,111,0,38,-1671,-1606,-1765,-1764,-1734,-1703,-29980,-29975,-29987,-29988,-29986,-29987,-29985,-29986,-29990,-29990,-29990,-29991,-29991,-29992,-29991,-29992,-29992,-29991,-29991,-29992,-29992,-29992,-29992,-29993,-29993,-29994,-29995,-29996,-29998,-29997,-29997,-29997,-29997,-29998,-29998,-29999,-29999,-29999,-29999]} 1. d4 {[%emt 0:00:42]} Nf6 {[%emt 0:04:41]} 2. c4 {[%emt 0:00:04]} e6 {[%emt 0:00:33]} 3. Nc3 {[%emt 0:00:24]} Bb4 {[%emt 0:01:34]} 4. e3 {[%emt 0:00:06]} d5 {[%emt 0:00:42]} 5. Bd3 {[%emt 0:03:07]} O-O {[%emt 0:00:08]} 6. Nf3 {[%emt 0:00:32]} c5 {[%emt 0:01:43] 6...dxc4 might become the main line.} 7. cxd5 {[%emt 0:00:55]} Nxd5 {[%emt 0:01:14] White must now prevent ...cxd4. E53: Nimzo-Indian: Rubinstein: Main Line (4...0-0 5 Nf3 d5 6 Bd3 c5 7 0-0).} 8. Qc2 {[%emt 0:05:56]} Nf6 {[%emt 0:04:42]} 9. O-O {[%emt 0:01:06]} (9. a3 $5 {[%cal Ra3b4]} Bxc3+ 10. bxc3 $14 (10. Qxc3 cxd4 11. exd4 b6 $11)) 9... cxd4 {[%emt 0:04:46] White is slightly better.} 10. exd4 {[%emt 0:03:44]} h6 {[%emt 0:02:59]} 11. Rd1 {[%emt 0:01:24]} Nc6 {[%emt 0:13:18]} 12. a3 {[%emt 0:10:11]} Bd6 {[%emt 0:01:00]} 13. Ne4 {[%emt 0:05:24] [#]} Nd5 $146 {[%emt 0:02:07]} ({Predecessor:} 13... Nxe4 14. Bxe4 Ne7 15. Ne5 Bxe5 16. dxe5 Nd5 17. Qe2 b6 18. Qg4 f5 19. exf6 Qxf6 {½-½ (78) Vasquez Schroder,R (2441)-Matsenko,A (2228) Chess.com INT 2020}) 14. Nxd6 {[%emt 0:19:06]} Qxd6 {[%emt 0:00:22]} 15. b4 {[%emt 0:15:31]} b6 {[%emt 0:02:06]} 16. Bb2 {[%emt 0:03:23]} Bb7 {[%emt 0:00:06]} 17. Rac1 {[%emt 0:00:15]} Rac8 {[%emt 0:00:07][%cal Oc6b4]} 18. Qb3 {[%emt 0:04:00]} Nce7 {[%emt 0:01:08]} 19. Ne5 {[%emt 0:03:54]} Nf4 {[%emt 0:04:12] aiming for ...f6. Pair of Knights!} 20. Bf1 {[%emt 0:02:02]} f6 {[%emt 0:09:17]} 21. Nc4 {[%emt 0:06:09]} Qd5 {[%emt 0:01:54][%cal Of4e2] Threatens to win with ...Ne2+!} 22. Qg3 {[%emt 0:03:06]} g5 $36 {[%emt 0:07:57][%mdl 2048] And now ...Nf5 would win. Black fights for an advantage.} 23. f3 {[%emt 0:00:39]} (23. Ne3 $15 Qa2 24. Rxc8 Rxc8 25. Rd2) 23... Nf5 {[%emt 0:01:03]} ({Black should play} 23... Ba6 $1 $17 {[%cal Ra6c4]} 24. Ne3 (24. Nxb6 $2 Rxc1 25. Bxc1 Qb3 $19) 24... Qb3 25. Bxa6 Qxb2 26. Rxc8 Rxc8) 24. Qf2 $1 $11 {[%emt 0:00:03]} Nh4 {[%emt 0:11:08][%cal Of4h3]} 25. Ne3 {[%emt 0:01:28]} Qd6 {[%emt 0:03:33]} (25... Rxc1 $11 26. Rxc1 (26. Nxd5 Nh3+ 27. gxh3 Rxd1 $15) 26... Qd6) 26. Qg3 {[%emt 0:06:14]} ({White has to play} 26. Rxc8 $1 $16 Rxc8 27. d5) 26... Rxc1 {[%emt 0:01:33]} 27. Rxc1 {[%emt 0:00:23]} f5 {[%emt 0:04:11]} 28. Bc4 {[%emt 0:01:43]} (28. b5 $11) 28... Rc8 $17 {[%emt 0:06:19][%cal Ob6b5] 0x0.00144b51642bdp-1022s more active pieces.} 29. Bf1 $2 {[%emt 0:01:12][%mdl 8192]} (29. Kh1 $17 {was necessary.}) 29... Rxc1 $19 {[%emt 0:00:25]} 30. Bxc1 {[%emt 0:00:01]} Qc6 {[%emt 0:00:13]} (30... Qxd4 $19 {[%cal Oh4g2] Hoping for ...Nhxg2!} 31. Qf2 Nh3+ $1 32. gxh3 Nxf3+ 33. Kh1 Qc3) 31. Bb2 $11 {[%emt 0:02:35]} a5 {[%emt 0:02:14]} 32. b5 {[%emt 0:00:16]} Qc7 {[%emt 0:02:24]} 33. Bc4 {[%emt 0:00:10]} Nhg6 {[%emt 0:04:39]} 34. Qe1 {[%emt 0:00:56]} Kh7 {[%emt 0:00:43]} 35. Qd2 {[%emt 0:00:39]} Qd6 {[%emt 0:00:32] [#] Prevents d5.} (35... Nd5 $11 {keeps the balance.} 36. Bb3 Nxe3 37. Qxe3 Bd5) 36. Qc3 {[%emt 0:00:18]} ({Better is} 36. d5 $1 $16) 36... Bd5 {[%emt 0:00:40]} 37. Bxd5 $4 {[%emt 0:00:27][%mdl 8192]} (37. g3 $14 Bxc4 38. Qxc4) 37... Ne2+ $19 {[%emt 0:00:06]} ({Stronger than} 37... Nxd5 38. Nxd5 Qxd5 39. a4 $11 (39. Qc7+ Kg8 $11)) 38. Kf2 {[%emt 0:00:15]} Nxc3 {[%emt 0:00:06]} 39. Bxc3 {[%emt 0:00:41]} exd5 {[%emt 0:00:10]} 40. Bb2 {[%emt 0:00:34]} Qxh2 {[%emt 0:01:16] Black mates.} 41. Nxf5 {[%emt 0:30:49]} Nf4 {[%emt 0:30:11]} 42. Ne3 {[%emt 0:00:11]} Nd3+ {[%emt 0:00:07]} 43. Ke2 {[%emt 0:00:03]} Nxb2 {[%emt 0:00:07]} 44. Nxd5 {[%emt 0:00:42]} Qxg2+ {[%emt 0:01:20]} 45. Ke3 {[%emt 0:00:02]} Nd1+ {[%emt 0:00:30]} 46. Ke4 {[%emt 0:00:05]} Qe2+ {[%emt 0:00:22]} 47. Kf5 {[%emt 0:00:02]} Ne3+ {[%emt 0:00:18]} 48. Ke6 {[%emt 0:00:25]} Nxd5+ {[%emt 0:00:07]} 49. Kxd5 {[%emt 0:00:02]} Qxf3+ {[%emt 0:00:14]} 50. Ke5 {[%emt 0:00:03]} Qe3+ {[%emt 0:00:10]} 51. Kd5 {[%emt 0:00:10]} g4 {[%emt 0:00:14]} 52. a4 {[%emt 0:00:12]} g3 {[%emt 0:00:18]} 53. Kc4 {[%emt 0:00:01]} g2 {[%emt 0:00:11]} 54. d5 {[%emt 0:00:02]} Qc5+ {[%emt 0:00:11]} 55. Kb3 {[%emt 0:00:03]} Qxd5+ {[%emt 0:00:06]} 56. Kc3 {[%emt 0:00:03]} g1=Q {[%emt 0:00:17][%cal Rg1c1]} 57. Kb2 {[%emt 0:00:03]} Qd3 {[%emt 0:00:17][%csl Gd3][%cal Rg1b1]} 58. Ka2 {[%emt 0:00:04]} Qf2+ {[%emt 0:00:06]} 59. Ka1 {[%emt 0:00:05] Weighted Error Value: White=0.69/Black=0.34} 0-1